[Event "*** Titled Tuesday Blitz"]
[Site "Chess.com"]
[Date "2020.04.21"]
[Round "7"]
[White "Kumi29"]
[Black "TV27"]
[Result "0-1"]
[WhiteElo "2374"]
[BlackElo "2157"]
[TimeControl "180+1"]
[EndTime "11:21:57 PDT"]
[Termination "TV27 won by resignation"]

1. d4 {[%clk 0:03:00.9]} 1... f5 {[%clk 0:02:58.8]} 2. e4 {[%clk 0:03:00.6]}
2... fxe4 {[%clk 0:02:57.6]} 3. Nc3 {[%clk 0:03:01.2]} 3... Nf6 {[%clk
0:02:57.3]} 4. Bg5 {[%clk 0:03:01.3]} 4... g6 {[%clk 0:02:57.4]} 5. f3 {[%clk
0:02:59.6]} 5... d5 {[%clk 0:02:53.8]} 6. fxe4 {[%clk 0:02:52.2]} 6... Nxe4
{[%clk 0:02:52.7]} 7. Nxe4 {[%clk 0:02:52.1]} 7... dxe4 {[%clk 0:02:52.5]} 8.
Bc4 {[%clk 0:02:52.5]} 8... Qd6 {[%clk 0:02:40.5]} 9. Qd2 {[%clk 0:02:48.6]}
9... Be6 {[%clk 0:02:36.5]} 10. d5 {[%clk 0:02:41]} 10... Bf7 {[%clk 0:02:35.6]}
11. Ne2 {[%clk 0:02:39.4]} 11... Bg7 {[%clk 0:02:34.5]} 12. c3 {[%clk
0:02:28.8]} 12... O-O {[%clk 0:02:24.1]} 13. O-O-O {[%clk 0:02:28.5]} 13... Nd7
{[%clk 0:02:22]} 14. h4 {[%clk 0:02:25.4]} 14... Ne5 {[%clk 0:02:16.5]} 15. b3
{[%clk 0:01:58.5]} 15... Rab8 {[%clk 0:02:10.8]} 16. Nf4 {[%clk 0:01:51.3]}
16... Nxc4 {[%clk 0:02:06.6]} 17. bxc4 {[%clk 0:01:51.1]} 17... Qa3+ {[%clk
0:02:05.7]} 18. Qb2 {[%clk 0:01:50.5]} 18... Qxc3+ {[%clk 0:02:04.3]} 19. Qxc3
{[%clk 0:01:48.5]} 19... Bxc3 {[%clk 0:02:03.4]} 20. Bxe7 {[%clk 0:01:49.1]}
20... Rfe8 {[%clk 0:02:00.6]} 21. d6 {[%clk 0:01:45.3]} 21... cxd6 {[%clk
0:01:52.5]} 22. Bxd6 {[%clk 0:01:45.6]} 22... Rbc8 {[%clk 0:01:51.2]} 23. c5
{[%clk 0:01:37.5]} 23... b6 {[%clk 0:01:47.9]} 24. Nd5 {[%clk 0:01:31.9]} 24...
Bxd5 {[%clk 0:01:42.9]} 25. Rxd5 {[%clk 0:01:32.8]} 25... e3 {[%clk 0:01:40.3]}
26. Kc2 {[%clk 0:01:17.4]} 26... Ba5 {[%clk 0:01:27.4]} 27. Be5 {[%clk
0:01:02.8]} 27... Rxc5+ {[%clk 0:01:21.8]} 28. Rxc5 {[%clk 0:01:03]} 28... bxc5
{[%clk 0:01:21.6]} 29. Bc3 {[%clk 0:01:03.5]} 29... Bxc3 {[%clk 0:01:20.7]} 30.
Kxc3 {[%clk 0:01:04.4]} 30... Kg7 {[%clk 0:01:17.3]} 31. Re1 {[%clk 0:01:00.6]}
31... Kh6 {[%clk 0:01:15.2]} 32. g4 {[%clk 0:01:00]} 32... Re4 {[%clk
0:01:09.3]} 33. Kd3 {[%clk 0:00:59.8]} 33... Rxg4 {[%clk 0:01:07.9]} 34. Rxe3
{[%clk 0:00:59.1]} 34... Rxh4 {[%clk 0:01:06.8]} 35. Re5 {[%clk 0:00:58.4]}
35... Ra4 {[%clk 0:01:04.2]} 36. Rxc5 {[%clk 0:00:57.7]} 36... Rxa2 {[%clk
0:01:03.3]} 37. Kc3 {[%clk 0:00:58.3]} 37... Ra6 {[%clk 0:01:01.1]} 38. Kb4
{[%clk 0:00:58.1]} 38... Rb6+ {[%clk 0:01:00]} 39. Ka5 {[%clk 0:00:58.7]} 39...
Rb1 {[%clk 0:00:58.8]} 40. Ka6 {[%clk 0:00:56.8]} 40... g5 {[%clk 0:00:58.1]}
41. Kxa7 {[%clk 0:00:55.3]} 41... Kh5 {[%clk 0:00:56.7]} 42. Ka8 {[%clk
0:00:54]} 42... h6 {[%clk 0:00:55.9]} 43. Rc6 {[%clk 0:00:54.3]} 43... g4 {[%clk
0:00:54.9]} 44. Rf6 {[%clk 0:00:54.5]} 44... Kg5 {[%clk 0:00:51.4]} 45. Rf7
{[%clk 0:00:53]} 45... h5 {[%clk 0:00:51]} 46. Rg7+ {[%clk 0:00:53]} 46... Kh4
{[%clk 0:00:50.6]} 47. Rg6 {[%clk 0:00:52.9]} 47... g3 {[%clk 0:00:49.9]} 48.
Rg7 {[%clk 0:00:52.2]} 48... Kh3 {[%clk 0:00:48.9]} 49. Rg5 {[%clk 0:00:52.1]}
49... h4 {[%clk 0:00:48.6]} 50. Rg6 {[%clk 0:00:51.6]} 50... g2 {[%clk
0:00:47.9]} 51. Rh6 {[%clk 0:00:51.6]} 51... Kg3 {[%clk 0:00:46.9]} 52. Rg6+
{[%clk 0:00:51.6]} 52... Kh2 {[%clk 0:00:46.3]} 53. Rg4 {[%clk 0:00:51.8]} 53...
h3 {[%clk 0:00:46]} 54. Rh4 {[%clk 0:00:51.1]} 54... g1=Q {[%clk 0:00:43.8]} 55.
Rxh3+ {[%clk 0:00:50.9]} 55... Kg2 {[%clk 0:00:42.7]} 56. Rg3+ {[%clk
0:00:50.4]} 56... Kf2 {[%clk 0:00:41.7]} 57. Rf3+ {[%clk 0:00:50.9]} 57... Kg2
{[%clk 0:00:39]} 58. Rg3+ {[%clk 0:00:51.1]} 58... Kf2 {[%clk 0:00:38.6]} 59.
Rf3+ {[%clk 0:00:51.4]} 59... Ke2 {[%clk 0:00:38.2]} 60. Rf2+ {[%clk 0:00:48.7]}
60... Kxf2 {[%clk 0:00:36.8]} 0-1

[Event "*** Titled Tuesday Blitz"]
[Site "Chess.com"]
[Date "2020.04.21"]
[Round "7"]
[White "LuisFSiles"]
[Black "mshuaau0"]
[Result "1-0"]
[WhiteElo "2265"]
[BlackElo "2109"]
[TimeControl "180+1"]
[EndTime "11:21:58 PDT"]
[Termination "LuisFSiles won by resignation"]

1. e4 {[%clk 0:03:00.9]} 1... e5 {[%clk 0:02:59]} 2. Nf3 {[%clk 0:03:00.9]} 2...
Nc6 {[%clk 0:02:58.8]} 3. Bc4 {[%clk 0:03:01.4]} 3... Nf6 {[%clk 0:02:57.3]} 4.
d3 {[%clk 0:03:00.8]} 4... Be7 {[%clk 0:02:56.3]} 5. O-O {[%clk 0:02:59.8]} 5...
d6 {[%clk 0:02:56.6]} 6. Re1 {[%clk 0:02:59.2]} 6... O-O {[%clk 0:02:56.3]} 7.
Nc3 {[%clk 0:02:56.6]} 7... Na5 {[%clk 0:02:54.1]} 8. h3 {[%clk 0:02:52.3]} 8...
Nxc4 {[%clk 0:02:53.3]} 9. dxc4 {[%clk 0:02:52.5]} 9... Be6 {[%clk 0:02:52.6]}
10. Nd5 {[%clk 0:02:51.1]} 10... c6 {[%clk 0:02:51.7]} 11. Nxe7+ {[%clk
0:02:49.4]} 11... Qxe7 {[%clk 0:02:52.6]} 12. b3 {[%clk 0:02:49.7]} 12... a5
{[%clk 0:02:46.3]} 13. a4 {[%clk 0:02:49.3]} 13... Qc7 {[%clk 0:02:44.4]} 14.
Ba3 {[%clk 0:02:41.8]} 14... Rfd8 {[%clk 0:02:42.2]} 15. Qe2 {[%clk 0:02:41.5]}
15... Nh5 {[%clk 0:02:34.7]} 16. Rad1 {[%clk 0:02:22.6]} 16... Nf4 {[%clk
0:02:32.3]} 17. Qe3 {[%clk 0:02:23.1]} 17... f6 {[%clk 0:02:28.3]} 18. Kh2
{[%clk 0:02:21.7]} 18... d5 {[%clk 0:02:22.1]} 19. cxd5 {[%clk 0:02:10.1]} 19...
cxd5 {[%clk 0:02:21.7]} 20. exd5 {[%clk 0:02:06.3]} 20... Bxd5 {[%clk 0:02:19]}
21. c4 {[%clk 0:02:03.2]} 21... Bxf3 {[%clk 0:02:13.1]} 22. Qxf3 {[%clk
0:02:04.1]} 22... Qc6 {[%clk 0:02:13.1]} 23. Qxc6 {[%clk 0:01:57.4]} 23... bxc6
{[%clk 0:02:12.7]} 24. Bc5 {[%clk 0:01:42.4]} 24... Nd3 {[%clk 0:02:09.8]} 25.
Bb6 {[%clk 0:01:38.8]} 25... Nxe1 {[%clk 0:02:04.7]} 26. Rxd8+ {[%clk
0:01:37.5]} 26... Rxd8 {[%clk 0:01:59.9]} 27. Bxd8 {[%clk 0:01:38.4]} 27... Nd3
{[%clk 0:01:57.2]} 28. Bxa5 {[%clk 0:01:36.8]} 28... Kf7 {[%clk 0:01:57.5]} 29.
b4 {[%clk 0:01:22.4]} 29... Ke6 {[%clk 0:01:54.1]} 30. b5 {[%clk 0:01:22.2]}
30... Kd7 {[%clk 0:01:50.9]} 31. Bc3 {[%clk 0:01:08.9]} 31... Kc8 {[%clk
0:01:49.7]} 32. Kg3 {[%clk 0:01:03.9]} 32... e4 {[%clk 0:01:44]} 33. a5 {[%clk
0:01:00.5]} 33... Kb7 {[%clk 0:01:37.6]} 34. Bd4 {[%clk 0:01:00.5]} 34... c5
{[%clk 0:01:31.8]} 35. Be3 {[%clk 0:00:54.1]} 35... Nb2 {[%clk 0:01:28]} 36.
Bxc5 {[%clk 0:00:52.2]} 36... Nxc4 {[%clk 0:01:27.6]} 37. a6+ {[%clk 0:00:50.9]}
37... Kb8 {[%clk 0:01:26.3]} 38. b6 {[%clk 0:00:48.9]} 38... Na5 {[%clk
0:01:17]} 39. Bd6+ {[%clk 0:00:45.2]} 39... Kc8 {[%clk 0:01:15.5]} 40. b7+
{[%clk 0:00:43.1]} 40... Nxb7 {[%clk 0:01:16]} 41. a7 {[%clk 0:00:37.8]} 41...
Nxd6 {[%clk 0:01:13.1]} 42. a8=Q+ {[%clk 0:00:37.7]} 42... Kd7 {[%clk
0:01:13.1]} 43. Qd5 {[%clk 0:00:31.3]} 43... Ke7 {[%clk 0:01:11.2]} 44. Kf4
{[%clk 0:00:30.6]} 44... f5 {[%clk 0:01:10.8]} 45. Ke5 {[%clk 0:00:28.7]} 45...
Ne8 {[%clk 0:01:06.4]} 46. Qe6+ {[%clk 0:00:26.8]} 46... Kf8 {[%clk 0:01:06.1]}
47. Qxf5+ {[%clk 0:00:26.7]} 47... Nf6 {[%clk 0:01:05.3]} 48. g4 {[%clk
0:00:23.9]} 48... h6 {[%clk 0:01:04.3]} 49. h4 {[%clk 0:00:23.3]} 49... Kg8
{[%clk 0:01:02.9]} 50. g5 {[%clk 0:00:22.7]} 50... hxg5 {[%clk 0:01:02.4]} 51.
hxg5 {[%clk 0:00:23.6]} 51... Nd7+ {[%clk 0:01:01.7]} 52. Qxd7 {[%clk
0:00:23.2]} 52... e3 {[%clk 0:00:58.3]} 53. fxe3 {[%clk 0:00:22.6]} 53... Kh8
{[%clk 0:00:52.7]} 54. g6 {[%clk 0:00:20.8]} 1-0

[Event "*** Titled Tuesday Blitz"]
[Site "Chess.com"]
[Date "2020.04.21"]
[Round "7"]
[White "tamarozi99"]
[Black "HrvojeZagreb"]
[Result "0-1"]
[WhiteElo "1981"]
[BlackElo "2127"]
[TimeControl "180+1"]
[EndTime "11:21:58 PDT"]
[Termination "HrvojeZagreb won by resignation"]

1. e4 {[%clk 0:03:00.9]} 1... e6 {[%clk 0:02:59.9]} 2. d4 {[%clk 0:02:59.4]}
2... d5 {[%clk 0:03:00.1]} 3. Nc3 {[%clk 0:02:59.3]} 3... dxe4 {[%clk
0:03:00.3]} 4. Nxe4 {[%clk 0:02:59]} 4... Nd7 {[%clk 0:03:01.2]} 5. Bd3 {[%clk
0:02:58.9]} 5... Ngf6 {[%clk 0:03:02.1]} 6. Nf3 {[%clk 0:02:58.4]} 6... b6
{[%clk 0:02:57.5]} 7. c3 {[%clk 0:02:57]} 7... Bb7 {[%clk 0:02:57.6]} 8. Ng3
{[%clk 0:02:53.9]} 8... c5 {[%clk 0:02:56.5]} 9. O-O {[%clk 0:02:43.2]} 9... Be7
{[%clk 0:02:54.2]} 10. dxc5 {[%clk 0:02:33.9]} 10... Bxc5 {[%clk 0:02:51.5]} 11.
b4 {[%clk 0:02:32.8]} 11... Be7 {[%clk 0:02:47.6]} 12. Bf4 {[%clk 0:02:30.2]}
12... O-O {[%clk 0:02:46.5]} 13. Re1 {[%clk 0:02:26.2]} 13... Nd5 {[%clk
0:02:46.5]} 14. Bd2 {[%clk 0:02:21.3]} 14... Bf6 {[%clk 0:02:45.1]} 15. Rc1
{[%clk 0:02:18.2]} 15... a5 {[%clk 0:02:28.8]} 16. b5 {[%clk 0:02:14.2]} 16...
Nc5 {[%clk 0:02:27.7]} 17. Bb1 {[%clk 0:02:07.1]} 17... Qc7 {[%clk 0:02:19.4]}
18. Qc2 {[%clk 0:02:06.9]} 18... g6 {[%clk 0:02:18.3]} 19. Nh5 {[%clk
0:02:04.5]} 19... Bh8 {[%clk 0:02:15]} 20. Ng5 {[%clk 0:01:30.8]} 20... f6
{[%clk 0:02:03.8]} 21. Nxe6 {[%clk 0:01:08.1]} 21... Nxe6 {[%clk 0:02:04.7]} 22.
Rxe6 {[%clk 0:01:08.6]} 22... gxh5 {[%clk 0:02:04.3]} 23. c4 {[%clk 0:01:06.6]}
23... Nb4 {[%clk 0:01:57.6]} 24. Qf5 {[%clk 0:00:50.6]} 24... Bc8 {[%clk
0:01:31.3]} 25. a3 {[%clk 0:00:15.7]} 25... Bxe6 {[%clk 0:01:27.1]} 26. Qxe6+
{[%clk 0:00:16.6]} 26... Qf7 {[%clk 0:01:27.4]} 27. Qxb6 {[%clk 0:00:16.2]}
27... Rad8 {[%clk 0:01:25.3]} 28. Qe3 {[%clk 0:00:11.1]} 28... Rfe8 {[%clk
0:01:11.1]} 29. Qg3+ {[%clk 0:00:10.2]} 29... Qg7 {[%clk 0:01:10.7]} 30. Qxg7+
{[%clk 0:00:09.4]} 30... Bxg7 {[%clk 0:01:11.1]} 31. axb4 {[%clk 0:00:10.3]}
31... Rxd2 {[%clk 0:01:10.2]} 32. bxa5 {[%clk 0:00:09.9]} 32... f5 {[%clk
0:01:02.3]} 33. b6 {[%clk 0:00:09.2]} 33... Bd4 {[%clk 0:01:00.5]} 34. b7 {[%clk
0:00:08.1]} 34... Rxf2 {[%clk 0:00:57.3]} 35. Kh1 {[%clk 0:00:06.8]} 35... h4
{[%clk 0:00:30.4]} 36. c5 {[%clk 0:00:05.6]} 36... Rfe2 {[%clk 0:00:29.6]} 37.
c6 {[%clk 0:00:04.6]} 37... Re1+ {[%clk 0:00:29.2]} 0-1

[Event "*** Titled Tuesday Blitz"]
[Site "Chess.com"]
[Date "2020.04.21"]
[Round "7"]
[White "Dynamikus"]
[Black "LiemLe"]
[Result "0-1"]
[WhiteElo "2740"]
[BlackElo "3002"]
[TimeControl "180+1"]
[EndTime "11:22:00 PDT"]
[Termination "LiemLe won on time"]

1. e4 {[%clk 0:03:00.9]} 1... e5 {[%clk 0:03:00.1]} 2. f4 {[%clk 0:03:00.7]}
2... d5 {[%clk 0:02:59.2]} 3. exd5 {[%clk 0:02:58.6]} 3... exf4 {[%clk
0:02:59.3]} 4. Nf3 {[%clk 0:02:56.1]} 4... Nf6 {[%clk 0:02:58.3]} 5. Nc3 {[%clk
0:02:47.7]} 5... Nxd5 {[%clk 0:02:56.3]} 6. Nxd5 {[%clk 0:02:47.5]} 6... Qxd5
{[%clk 0:02:57.2]} 7. d4 {[%clk 0:02:47.8]} 7... Bd6 {[%clk 0:02:42.6]} 8. Be2
{[%clk 0:02:35.4]} 8... O-O {[%clk 0:02:37.1]} 9. O-O {[%clk 0:02:35.2]} 9... c5
{[%clk 0:02:34.1]} 10. c4 {[%clk 0:02:31.6]} 10... Qc6 {[%clk 0:02:21.3]} 11. d5
{[%clk 0:02:12.2]} 11... Qc7 {[%clk 0:02:19.4]} 12. Qc2 {[%clk 0:02:03.8]} 12...
Nd7 {[%clk 0:02:13.7]} 13. Ng5 {[%clk 0:01:51.1]} 13... Nf6 {[%clk 0:02:13.1]}
14. Bd3 {[%clk 0:01:50.8]} 14... h6 {[%clk 0:02:05.1]} 15. Nh7 {[%clk
0:01:47.5]} 15... Nxh7 {[%clk 0:02:03.4]} 16. Bxh7+ {[%clk 0:01:48.4]} 16... Kh8
{[%clk 0:02:04.3]} 17. Bd3 {[%clk 0:01:34.4]} 17... Be5 {[%clk 0:01:51.5]} 18.
Kh1 {[%clk 0:01:30.3]} 18... Bg4 {[%clk 0:01:47.5]} 19. Bf5 {[%clk 0:01:19.2]}
19... Bh5 {[%clk 0:01:28.4]} 20. Bd2 {[%clk 0:00:56.1]} 20... Qd6 {[%clk
0:01:04.5]} 21. Rae1 {[%clk 0:00:54.3]} 21... Rae8 {[%clk 0:00:57.7]} 22. Qe4
{[%clk 0:00:47.8]} 22... g6 {[%clk 0:00:48.2]} 23. Bh3 {[%clk 0:00:38.2]} 23...
g5 {[%clk 0:00:48.1]} 24. Bf5 {[%clk 0:00:25.3]} 24... Kg7 {[%clk 0:00:45.1]}
25. b3 {[%clk 0:00:20.4]} 25... Bg6 {[%clk 0:00:38.1]} 26. Qd3 {[%clk
0:00:20.7]} 26... Qf6 {[%clk 0:00:34.6]} 27. Be4 {[%clk 0:00:17.5]} 27... Bd4
{[%clk 0:00:33.3]} 28. g3 {[%clk 0:00:13.5]} 28... Rxe4 {[%clk 0:00:30.8]} 29.
Rxe4 {[%clk 0:00:14.4]} 29... Re8 {[%clk 0:00:30.7]} 30. Rfe1 {[%clk 0:00:13.4]}
30... Rxe4 {[%clk 0:00:30.7]} 31. Rxe4 {[%clk 0:00:14.3]} 31... Qf5 {[%clk
0:00:31.2]} 32. Rxd4 {[%clk 0:00:13.6]} 32... Qg4 {[%clk 0:00:20]} 33. Rxf4
{[%clk 0:00:08.7]} 33... gxf4 {[%clk 0:00:19.8]} 34. Bc3+ {[%clk 0:00:08.1]}
34... Kh7 {[%clk 0:00:20.2]} 35. Qf1 {[%clk 0:00:05.6]} 35... fxg3 {[%clk
0:00:18.6]} 36. hxg3 {[%clk 0:00:06.5]} 36... Qxg3 {[%clk 0:00:16.7]} 0-1

[Event "*** Titled Tuesday Blitz"]
[Site "Chess.com"]
[Date "2020.04.21"]
[Round "7"]
[White "szefru"]
[Black "noblerone"]
[Result "0-1"]
[WhiteElo "2149"]
[BlackElo "2459"]
[TimeControl "180+1"]
[EndTime "11:22:00 PDT"]
[Termination "noblerone won by checkmate"]

1. e4 {[%clk 0:03:00.9]} 1... c5 {[%clk 0:02:59.6]} 2. Nf3 {[%clk 0:02:59.3]}
2... e6 {[%clk 0:02:59.9]} 3. b3 {[%clk 0:02:58.8]} 3... d5 {[%clk 0:02:57.6]}
4. exd5 {[%clk 0:02:58.3]} 4... Qxd5 {[%clk 0:02:57.4]} 5. Nc3 {[%clk
0:02:52.3]} 5... Qd8 {[%clk 0:02:55.7]} 6. Bb5+ {[%clk 0:02:49.9]} 6... Bd7
{[%clk 0:02:53.2]} 7. Bxd7+ {[%clk 0:02:50]} 7... Nxd7 {[%clk 0:02:54.1]} 8. O-O
{[%clk 0:02:50.4]} 8... Ngf6 {[%clk 0:02:54.1]} 9. d3 {[%clk 0:02:50.6]} 9...
Be7 {[%clk 0:02:53.2]} 10. Bb2 {[%clk 0:02:51.1]} 10... O-O {[%clk 0:02:53.1]}
11. Qe2 {[%clk 0:02:42.8]} 11... Nb6 {[%clk 0:02:47.8]} 12. Ne4 {[%clk
0:02:39.9]} 12... Nbd5 {[%clk 0:02:46.6]} 13. h3 {[%clk 0:02:34.1]} 13... Rc8
{[%clk 0:02:45.3]} 14. Rad1 {[%clk 0:02:31.6]} 14... Nf4 {[%clk 0:02:37.2]} 15.
Qd2 {[%clk 0:02:27.4]} 15... Ng6 {[%clk 0:02:33.1]} 16. c4 {[%clk 0:02:08.7]}
16... Rc7 {[%clk 0:02:02.5]} 17. Qe3 {[%clk 0:02:07.4]} 17... b6 {[%clk
0:01:57]} 18. d4 {[%clk 0:01:50.6]} 18... Nxe4 {[%clk 0:01:43.6]} 19. Qxe4
{[%clk 0:01:50.3]} 19... Qe8 {[%clk 0:01:21.3]} 20. Rfe1 {[%clk 0:01:43.7]}
20... cxd4 {[%clk 0:01:15.5]} 21. Nxd4 {[%clk 0:01:41.3]} 21... Bf6 {[%clk
0:01:13.6]} 22. Nb5 {[%clk 0:01:40.6]} 22... Rd7 {[%clk 0:01:11.1]} 23. Bxf6
{[%clk 0:01:03.4]} 23... gxf6 {[%clk 0:01:10.4]} 24. Nd6 {[%clk 0:00:55.7]}
24... Qe7 {[%clk 0:01:07.5]} 25. Nb5 {[%clk 0:00:46.7]} 25... Rfd8 {[%clk
0:01:04.2]} 26. Rxd7 {[%clk 0:00:46.1]} 26... Qxd7 {[%clk 0:01:02.5]} 27. Re2
{[%clk 0:00:42]} 27... f5 {[%clk 0:00:53.5]} 28. Qe3 {[%clk 0:00:38.8]} 28... f4
{[%clk 0:00:32.7]} 29. Qe4 {[%clk 0:00:38]} 29... Qd1+ {[%clk 0:00:30.7]} 30.
Kh2 {[%clk 0:00:37.6]} 30... Rd2 {[%clk 0:00:26.3]} 31. Rxd2 {[%clk 0:00:33.1]}
31... Qxd2 {[%clk 0:00:27.2]} 32. a4 {[%clk 0:00:23.8]} 32... Qxf2 {[%clk
0:00:23.1]} 33. Nxa7 {[%clk 0:00:23.4]} 33... Nh4 {[%clk 0:00:18.3]} 34. Nc8
{[%clk 0:00:19.4]} 34... f3 {[%clk 0:00:17.5]} 35. Qg4+ {[%clk 0:00:19.4]} 35...
Kf8 {[%clk 0:00:12.6]} 36. Nd6 {[%clk 0:00:19.1]} 36... fxg2 {[%clk 0:00:09.8]}
37. Ne4 {[%clk 0:00:15.4]} 37... g1=Q# {[%clk 0:00:09.7]} 0-1

[Event "*** Titled Tuesday Blitz"]
[Site "Chess.com"]
[Date "2020.04.21"]
[Round "7"]
[White "ReyesBraulio"]
[Black "mathapples"]
[Result "0-1"]
[WhiteElo "2142"]
[BlackElo "2329"]
[TimeControl "180+1"]
[EndTime "11:22:02 PDT"]
[Termination "mathapples won by resignation"]

1. d4 {[%clk 0:03:00.9]} 1... d5 {[%clk 0:03:00]} 2. f4 {[%clk 0:03:00.8]} 2...
Nf6 {[%clk 0:02:59.6]} 3. Nf3 {[%clk 0:03:01]} 3... Bf5 {[%clk 0:02:56.5]} 4. e3
{[%clk 0:03:01]} 4... e6 {[%clk 0:02:56.2]} 5. Bd3 {[%clk 0:03:01.5]} 5... Bxd3
{[%clk 0:02:55.7]} 6. Qxd3 {[%clk 0:03:02.1]} 6... c6 {[%clk 0:02:53.4]} 7. O-O
{[%clk 0:03:01.9]} 7... Nbd7 {[%clk 0:02:52.7]} 8. Bd2 {[%clk 0:03:02.1]} 8...
Ne4 {[%clk 0:02:51.8]} 9. Be1 {[%clk 0:03:02.2]} 9... Bd6 {[%clk 0:02:49.5]} 10.
Nbd2 {[%clk 0:03:02]} 10... Ndf6 {[%clk 0:02:48.7]} 11. Bh4 {[%clk 0:03:00.9]}
11... Qb6 {[%clk 0:02:38.7]} 12. b3 {[%clk 0:02:57.2]} 12... O-O {[%clk
0:02:31]} 13. c4 {[%clk 0:02:55.1]} 13... c5 {[%clk 0:02:16.5]} 14. Bxf6 {[%clk
0:02:46.9]} 14... Nxf6 {[%clk 0:02:14.1]} 15. Kh1 {[%clk 0:02:35.6]} 15... Rfd8
{[%clk 0:02:00.3]} 16. Rac1 {[%clk 0:02:23.2]} 16... Rac8 {[%clk 0:01:55.7]} 17.
Ne5 {[%clk 0:02:13.6]} 17... cxd4 {[%clk 0:01:50.5]} 18. exd4 {[%clk 0:02:04.8]}
18... Ba3 {[%clk 0:01:37.6]} 19. c5 {[%clk 0:01:59.6]} 19... Qa5 {[%clk
0:01:15.8]} 20. Rc2 {[%clk 0:01:45.6]} 20... Bb4 {[%clk 0:01:14.9]} 21. Ndf3
{[%clk 0:01:41.4]} 21... Ne4 {[%clk 0:01:13.1]} 22. Ng5 {[%clk 0:01:41.6]} 22...
f6 {[%clk 0:01:11.1]} 23. Nxe6 {[%clk 0:01:25.3]} 23... fxe5 {[%clk 0:01:09.9]}
24. Nxd8 {[%clk 0:01:22.5]} 24... Rxd8 {[%clk 0:01:08.8]} 25. fxe5 {[%clk
0:01:22.6]} 25... Be1 {[%clk 0:00:49.4]} 26. Qf3 {[%clk 0:01:12.8]} 26... h6
{[%clk 0:00:36.5]} 27. Qf7+ {[%clk 0:01:03.1]} 27... Kh7 {[%clk 0:00:34.1]} 28.
e6 {[%clk 0:01:03.3]} 28... Bh4 {[%clk 0:00:24.1]} 29. e7 {[%clk 0:00:23]} 29...
Bxe7 {[%clk 0:00:19]} 30. Qxe7 {[%clk 0:00:22.5]} 30... Qb5 {[%clk 0:00:18.4]}
31. Rcc1 {[%clk 0:00:20.6]} 31... Re8 {[%clk 0:00:17.4]} 32. Qh4 {[%clk
0:00:19.9]} 32... Qe2 {[%clk 0:00:16.7]} 33. Qf4 {[%clk 0:00:19.5]} 33... Nd2
{[%clk 0:00:15.5]} 34. Qf5+ {[%clk 0:00:18.6]} 34... Kh8 {[%clk 0:00:14.7]} 35.
Rg1 {[%clk 0:00:16.7]} 35... Ne4 {[%clk 0:00:13.5]} 36. Qf3 {[%clk 0:00:16.4]}
36... Nf2+ {[%clk 0:00:13.2]} 37. Qxf2 {[%clk 0:00:16.7]} 37... Qxf2 {[%clk
0:00:13.6]} 38. Rgf1 {[%clk 0:00:16.8]} 38... Qxd4 {[%clk 0:00:13.7]} 39. c6
{[%clk 0:00:16.5]} 39... bxc6 {[%clk 0:00:13.4]} 40. Rxc6 {[%clk 0:00:16.4]}
40... Qd2 {[%clk 0:00:13.8]} 41. Rcc1 {[%clk 0:00:16.1]} 41... Qxa2 {[%clk
0:00:13.9]} 0-1

[Event "*** Titled Tuesday Blitz"]
[Site "Chess.com"]
[Date "2020.04.21"]
[Round "7"]
[White "ljuks68"]
[Black "tan275"]
[Result "1-0"]
[WhiteElo "2334"]
[BlackElo "2149"]
[TimeControl "180+1"]
[EndTime "11:22:02 PDT"]
[Termination "ljuks68 won by resignation"]

1. e4 {[%clk 0:02:59.5]} 1... c6 {[%clk 0:02:59.9]} 2. d4 {[%clk 0:02:58.8]}
2... d5 {[%clk 0:03:00.5]} 3. e5 {[%clk 0:02:59.3]} 3... Bf5 {[%clk 0:03:00.9]}
4. Nd2 {[%clk 0:02:58.3]} 4... e6 {[%clk 0:03:01.3]} 5. Nb3 {[%clk 0:02:58.7]}
5... c5 {[%clk 0:02:59.9]} 6. Nxc5 {[%clk 0:02:55.6]} 6... Bxc5 {[%clk
0:02:59.3]} 7. dxc5 {[%clk 0:02:55.7]} 7... Qa5+ {[%clk 0:02:59.9]} 8. c3 {[%clk
0:02:46.7]} 8... Qxc5 {[%clk 0:03:00.8]} 9. Nf3 {[%clk 0:02:45.9]} 9... Qc7
{[%clk 0:02:58]} 10. Bf4 {[%clk 0:02:38.8]} 10... Nc6 {[%clk 0:02:57.5]} 11. Bd3
{[%clk 0:02:38.2]} 11... Bxd3 {[%clk 0:02:54.2]} 12. Qxd3 {[%clk 0:02:37.8]}
12... Nge7 {[%clk 0:02:54.5]} 13. Bg3 {[%clk 0:02:36.4]} 13... Nf5 {[%clk
0:02:54]} 14. Bf4 {[%clk 0:02:31.1]} 14... h6 {[%clk 0:02:53.6]} 15. h4 {[%clk
0:02:30.1]} 15... Rd8 {[%clk 0:02:42.1]} 16. O-O-O {[%clk 0:02:23]} 16... O-O
{[%clk 0:02:24.7]} 17. g4 {[%clk 0:02:17.4]} 17... Nfe7 {[%clk 0:02:24.7]} 18.
Kb1 {[%clk 0:02:12.7]} 18... Ng6 {[%clk 0:02:16.6]} 19. Bg3 {[%clk 0:02:06]}
19... Ngxe5 {[%clk 0:02:15.8]} 20. Nxe5 {[%clk 0:02:01.7]} 20... Nxe5 {[%clk
0:02:15.7]} 21. Qd4 {[%clk 0:01:56.7]} 21... f6 {[%clk 0:02:14]} 22. g5 {[%clk
0:01:46.4]} 22... Qb6 {[%clk 0:02:02.4]} 23. Bxe5 {[%clk 0:01:42.1]} 23... fxe5
{[%clk 0:02:01.5]} 24. Qxe5 {[%clk 0:01:42.3]} 24... Rxf2 {[%clk 0:01:59.8]} 25.
c4 {[%clk 0:01:36.8]} 25... d4 {[%clk 0:01:51.6]} 26. b3 {[%clk 0:01:36.3]}
26... h5 {[%clk 0:01:40]} 27. Rhe1 {[%clk 0:01:18]} 27... d3 {[%clk 0:01:24.9]}
28. g6 {[%clk 0:01:07.9]} 28... Rf5 {[%clk 0:01:22.5]} 29. Qxe6+ {[%clk
0:01:05.4]} 29... Qxe6 {[%clk 0:01:21.8]} 30. Rxe6 {[%clk 0:01:05.7]} 30... Rf6
{[%clk 0:01:13.4]} 31. Re3 {[%clk 0:00:58.4]} 31... Rxg6 {[%clk 0:00:58.3]} 32.
Rdxd3 {[%clk 0:00:57.6]} 32... Rxd3 {[%clk 0:00:58.8]} 33. Rxd3 {[%clk
0:00:57.5]} 33... Rg1+ {[%clk 0:00:50.3]} 34. Kb2 {[%clk 0:00:50.9]} 34... Rg4
{[%clk 0:00:43.5]} 35. Rd7 {[%clk 0:00:49.4]} 35... Rxh4 {[%clk 0:00:43.2]} 36.
Rxb7 {[%clk 0:00:49.2]} 36... Rf4 {[%clk 0:00:23.8]} 37. c5 {[%clk 0:00:48.3]}
37... h4 {[%clk 0:00:21.1]} 38. c6 {[%clk 0:00:46.7]} 38... h3 {[%clk
0:00:13.3]} 39. c7 {[%clk 0:00:44.8]} 39... Rf2+ {[%clk 0:00:11.5]} 40. Kc3
{[%clk 0:00:44.3]} 40... Rf8 {[%clk 0:00:09.1]} 41. Rb8 {[%clk 0:00:43.5]} 41...
h2 {[%clk 0:00:07.4]} 42. Rxf8+ {[%clk 0:00:42.1]} 42... Kh7 {[%clk 0:00:07.6]}
43. Rf1 {[%clk 0:00:40]} 1-0